fUSD/lending_fUSD_20260301
["ID","MTS","AMOUNT","RATE_DAILY","PERIOD"]
[406948040,1772333438005,-4021.59252974,0.00015291,2]
[406948041,1772333438021,-232.53747026,0.00015291,2]
[406948042,1772333438029,-978.47249465,0.00015321,2]
[406948043,1772333438038,-512.3206566,0.00015321,2]
[406948044,1772333438047,-508.84399446,0.00015321,2]
[406948045,1772333438056,-1000.0,0.00015321,2]
[406948046,1772333438065,-530.99620605,0.00015321,2]
[406948047,1772333438074,-1000.0,0.00015321,2]
[406948048,1772333438083,-500.0,0.00015321,2]
[406948049,1772333438093,-158.84999364,0.00015321,2]
[406948069,1772333438413,-841.15000636,0.00015321,2]
[406948071,1772333438422,-37.81666364,0.00015321,2]
[406948192,1772333440033,-123.98121601,0.00015321,2]
[406948193,1772333440043,-723.4044596,0.00015321,2]
[406948194,1772333440054,-276.5955404,0.00015321,2]
[406948195,1772333440064,-1000.0,0.00015321,2]
[406948196,1772333440073,-553.64708381,0.00015321,2]
[406948197,1772333440083,-316.56413579,0.00015321,2]
[406948198,1772333440094,-200.86811854,0.00015321,2]
[406948199,1772333440106,-204.64130889,0.00015321,2]
[406948200,1772333440115,-1000.0,0.00015321,2]
[406948201,1772333440125,-404.94031558,0.00015321,2]
[406948202,1772333440134,-571.84525699,0.00015321,2]
[406948203,1772333440146,-277.27325089,0.00015321,2]
[406948204,1772333440155,-1000.0,0.00015321,2]
[406948205,1772333440164,-594.11559055,0.00015321,2]
[406948206,1772333440175,-82.93769838,0.00015321,2]
[406948207,1772333440190,-917.06230162,0.00015321,2]
[406948208,1772333440199,-769.50140203,0.00015321,2]
[406948209,1772333440210,-336.38374143,0.00015321,2]
[406948210,1772333440220,-388.7575156,0.00015321,2]
[406948211,1772333440514,-611.2424844,0.00015321,2]
[406948212,1772333440524,-1000.0,0.00015321,2]
[406948213,1772333440533,-1000.0,0.00015321,2]
[406948214,1772333440542,-1000.0,0.00015321,2]
[406948215,1772333440552,-1000.0,0.00015321,2]
[406948216,1772333440561,-1000.69997296,0.00015321,2]
[406948217,1772333440571,-1000.0,0.00015321,2]
[406948218,1772333440580,-1000.0,0.00015321,2]
[406948219,1772333440589,-1000.0,0.00015321,2]
[406948220,1772333440599,-5000.0,0.00015414,2]
[406948221,1772333440608,-9055.51895935,0.00015419,2]
[406948222,1772333440617,-160.0,0.00015426,2]
[406948224,1772333440627,-174.09452548,0.00015426,2]
[406948225,1772333440636,-204.6647497,0.000155,2]
[406948227,1772333440647,-1993.36783225,0.000155,2]
[406948228,1772333440656,-230.01650114,0.000155,2]
[406948229,1772333440665,-3050.44756451,0.000155,2]
[406948230,1772333440675,-169.00501871,0.000155,2]
[406948231,1772333440685,-215.62405886,0.00015504,2]
[406948232,1772333440694,-151.0,0.00015511,2]
[406948233,1772333440704,-254.57543086,0.00015513,2]
[406948234,1772333440713,-278.85883401,0.00015513,2]
[406948235,1772333440724,-500.0,0.00015513,2]
[406948236,1772333440734,-500.0,0.00015513,2]
[406948237,1772333440747,-500.0,0.00015513,2]
[406948238,1772333440757,-500.0,0.00015513,2]
[406948239,1772333440768,-500.0,0.00015513,2]
[406948240,1772333440779,-500.0,0.00015513,2]
[406948241,1772333440790,-500.0,0.00015513,2]
[406948242,1772333440800,-500.0,0.00015513,2]
[406948243,1772333440810,-500.0,0.00015513,2]
[406948244,1772333440820,-459.33776637,0.00015513,2]
[406948245,1772333440830,-576.75477132,0.00015513,2]
[406948246,1772333440840,-500.0,0.00015513,2]
[406948247,1772333440855,-500.0,0.00015513,2]
[406948248,1772333440865,-500.0,0.00015513,2]
[406948249,1772333440875,-637.54607037,0.00015513,2]
[406948250,1772333440886,-343.14906015,0.00015513,2]
[406948251,1772333440895,-500.0,0.00015513,2]
[406948252,1772333440905,-500.0,0.00015513,2]
[406948253,1772333440915,-500.0,0.00015513,2]
[406948254,1772333440925,-500.0,0.00015513,2]
[406948255,1772333440938,-500.0,0.00015513,2]
[406948256,1772333440947,-500.0,0.00015513,2]
[406948257,1772333440956,-500.0,0.00015513,2]
[406948258,1772333440964,-500.0,0.00015513,2]
[406948259,1772333440973,-500.0,0.00015513,2]
[406948260,1772333440982,-500.0,0.00015513,2]
[406948261,1772333440991,-629.6643088,0.00015513,2]
[406948262,1772333441000,-500.0,0.00015513,2]
[406948263,1772333441009,-500.0,0.00015513,2]
[406948264,1772333441018,-629.6643088,0.00015513,2]
[406948265,1772333441027,-500.0,0.00015513,2]
[406948266,1772333441037,-500.0,0.00015513,2]
[406948267,1772333441047,-629.6643088,0.00015513,2]
[406948268,1772333441056,-500.0,0.00015513,2]
[406948269,1772333441065,-500.0,0.00015513,2]
[406948270,1772333441075,-629.6643088,0.00015513,2]
[406948271,1772333441084,-500.0,0.00015513,2]
[406948272,1772333441094,-500.0,0.00015513,2]
[406948273,1772333441107,-259.3286176,0.00015513,2]
[406948274,1772333441116,-500.0,0.00015513,2]
[406948275,1772333441125,-500.0,0.00015513,2]
[406948276,1772333441135,-500.0,0.00015513,2]
[406948277,1772333441144,-500.0,0.00015513,2]
[406948278,1772333441154,-500.0,0.00015513,2]
[406948279,1772333441164,-500.0,0.00015513,2]
[406948280,1772333441173,-500.0,0.00015513,2]
[406948281,1772333441183,-500.0,0.00015513,2]
[406948282,1772333441191,-500.0,0.00015513,2]
[406948283,1772333441201,-500.0,0.00015513,2]
[406948284,1772333441209,-666.0,0.00015513,2]
[406948285,1772333441218,-500.56490222,0.00015513,2]
[406948286,1772333441228,-500.0,0.00015513,2]
[406948287,1772333441237,-500.0,0.00015513,2]
[406948288,1772333441247,-500.0,0.00015513,2]
[406948289,1772333441256,-500.0,0.00015513,2]
[406948290,1772333441265,-500.0,0.00015513,2]
[406948291,1772333441273,-515.32142519,0.00015513,2]
[406948292,1772333441281,-500.0,0.00015513,2]
[406948293,1772333441289,-500.0,0.00015513,2]
[406948294,1772333441298,-500.0,0.00015513,2]
[406948295,1772333441308,-500.0,0.00015513,2]
[406948296,1772333441317,-500.0,0.00015513,2]
[406948297,1772333441326,-500.0,0.00015513,2]
[406948298,1772333441337,-500.0,0.00015513,2]
[406948299,1772333441346,-500.0,0.00015513,2]
[406948300,1772333441358,-500.0,0.00015513,2]
[406948301,1772333441367,-500.0,0.00015513,2]
[406948302,1772333441377,-500.0,0.00015513,2]
[406948303,1772333441386,-500.0,0.00015513,2]
[406948304,1772333441397,-500.0,0.00015513,2]
[406948305,1772333441407,-500.0,0.00015513,2]
[406948306,1772333441417,-500.0,0.00015513,2]
[406948307,1772333441426,-500.0,0.00015513,2]
[406948308,1772333441436,-500.0,0.00015513,2]
[406948309,1772333441445,-500.0,0.00015513,2]
[406948310,1772333441455,-500.0,0.00015513,2]
[406948311,1772333441464,-500.0,0.00015513,2]
[406948312,1772333441473,-514.74023041,0.00015513,2]
[406948313,1772333441482,-273.38135709,0.00015513,2]
[406948314,1772333441492,-261252.83478287,0.00015514,2]
[406948328,1772333443133,-3519.83403387,0.00015514,2]
[406948329,1772333443145,-9338.816128,0.00015514,2]
[406948337,1772333445745,-755.44669378,0.00015514,2]
[406948338,1772333445799,-334302.85343366,0.00015514,2]
[406948339,1772333446064,-1933.27255088,0.00015514,2]
[406948341,1772333446172,-572.01969778,0.00015514,2]
[406948342,1772333446182,-1893.12,0.00015514,2]
[406948344,1772333468320,1992.334593,7.945e-05,2]
[406948345,1772333529368,161.0,7.945e-05,3]
[406948346,1772333586672,161.0,7.945e-05,3]
[406948347,1772333646922,161.0,7.945e-05,3]
[406948349,1772333707548,367.0,7.945e-05,3]
[406948350,1772333707821,367.0,8.685e-05,3]
[406948351,1772333708058,161.0,7.945e-05,3]
[406948352,1772333708107,367.0,9.424e-05,3]
[406948353,1772333708391,367.0,0.00010164,3]
[406948356,1772333769277,161.0,7.945e-05,3]
[406948359,1772334009800,293.0,7.945e-05,3]
[406948360,1772334010082,293.0,8.685e-05,3]
[406948361,1772334010345,293.0,9.424e-05,3]
[406948362,1772334010612,293.0,0.00010164,3]
[406948363,1772334033372,158.64,7.102e-05,2]
[406948364,1772334033611,158.64,7.829e-05,2]
[406948372,1772334275017,-150.0,0.00013,15]
[406948373,1772334276477,-150.0,0.00013,15]
[406948374,1772334277345,-150.0,0.00013,15]
[406948375,1772334278212,-150.0,0.00013,15]
[406948376,1772334279014,-150.0,0.00013,15]
[406948377,1772334308169,235.0,7.945e-05,3]
[406948378,1772334308478,235.0,8.685e-05,3]
[406948379,1772334308751,235.0,9.424e-05,3]
[406948380,1772334309001,235.0,0.00010164,3]
[406948381,1772334319140,-150.0,0.00013,15]
[406948382,1772334320006,-150.0,0.00013,15]
[406948383,1772334320819,-150.0,0.00013,15]
[406948384,1772334322696,-150.0,0.00013,15]
[406948385,1772334324266,-150.0,0.00013,15]
[406948386,1772334354182,-300.0,0.00013,15]
[406948389,1772334610671,188.0,7.945e-05,3]
[406948390,1772334610908,188.0,8.685e-05,3]
[406948391,1772334611152,188.0,9.424e-05,3]
[406948392,1772334611428,188.0,0.00010164,3]
[406948402,1772334631952,-158.64,8.555e-05,2]
[406948405,1772334631961,-300.0,8.918e-05,2]
[406948407,1772334631971,-158.64,9.281e-05,2]
[406948411,1772334631980,-516.0,9.41e-05,2]
[406948413,1772334631990,-300.0,9.41e-05,2]
[406948415,1772334632001,-300.0,9.41e-05,2]
[406948416,1772334632010,-1200.0,9.41e-05,2]
[406948417,1772334632020,-354.18473431,9.411e-05,2]
[406948418,1772334632028,-195.0,9.411e-05,2]
[406948419,1772334632038,-300.0,9.411e-05,2]
[406948420,1772334632048,-336.0978048,9.411e-05,2]
[406948421,1772334632058,-300.0,9.411e-05,2]
[406948422,1772334632069,-301.93494077,9.459e-05,2]
[406948423,1772334632079,-158.64,0.00010008,2]
[406948424,1772334632089,-1680.0,0.00010351,2]
[406948425,1772334632099,-420.0,0.00010351,2]
[406948426,1772334632108,-158.64,0.00010734,2]
[406948427,1772334632117,-188.0,0.00010904,3]
[406948428,1772334632127,-326.51394,0.00011045,2]
[406948429,1772334632136,-180.143147,0.00011305,2]
[406948430,1772334632146,-2351.0,0.00011386,2]
[406948431,1772334632156,-158.64,0.00011461,2]
[406948432,1772334632165,-288.265961,0.00011578,2]
[406948433,1772334632175,-2151.1,0.00011627,2]
[406948434,1772334632184,-188.0,0.00011644,3]
[406948435,1772334632194,-500.0,0.000119,2]
[406948436,1772334632203,-443.28895339,0.00011977,2]
[406948437,1772334632213,-1668.1,0.00012018,2]
[406948438,1772334632223,-150.0,0.00012069,2]
[406948439,1772334632232,-500.0,0.0001207,2]
[406948440,1772334632242,-500.0,0.0001207,2]
[406948441,1772334632251,-857.36758301,0.0001207,2]
[406948443,1772334632260,-500.0,0.0001207,2]
[406948445,1772334632270,-500.0,0.0001207,2]
[406948447,1772334632279,-500.0,0.0001207,2]
[406948449,1772334632290,-500.0,0.0001207,2]
[406948452,1772334632301,-500.0,0.0001207,2]
[406948454,1772334632310,-501.30438786,0.0001207,2]
[406948456,1772334632319,-500.0,0.0001207,2]
[406948459,1772334632338,-500.0,0.0001207,2]
[406948461,1772334632349,-514.39808394,0.0001207,2]
[406948463,1772334632359,-526.86160769,0.0001207,2]
[406948466,1772334632372,-501.25482489,0.0001207,2]
[406948468,1772334632381,-505.07355535,0.0001207,2]
[406948470,1772334632390,-503.23742348,0.0001207,2]
[406948472,1772334632399,-345.91,0.00012084,2]
[406948474,1772334632409,-158.64,0.00012187,2]
[406948476,1772334632418,-158.98,0.00012247,2]
[406948478,1772334632428,-1500.0,0.00012252,2]
[406948480,1772334632437,-188.0,0.00012383,3]
[406948481,1772334632448,-3292.0,0.00012524,2]
[406948482,1772334632457,-500.0,0.000127,2]
[406948483,1772334632467,-166.68,0.00012771,2]
[406948484,1772334632477,-158.64,0.00012913,2]
[406948485,1772334632486,-2946.37532499,0.00013,15]
[406948486,1772334632496,-200.0,0.00013014,2]
[406948487,1772334632505,-1808.3,0.00013104,2]
[406948488,1772334632515,-188.0,0.00013123,3]
[406948489,1772334632524,-255.0,0.00013155,2]
[406948490,1772334632534,-200.0,0.00013176,2]
[406948491,1772334632543,-500.0,0.00013248,2]
[406948492,1772334632553,-380.66016665,0.00013417,2]
[406948493,1772334632562,-1000.0,0.00013433,2]
[406948494,1772334632571,-3240.0,0.00013434,2]
[406948495,1772334632581,-1850.27,0.00013554,2]
[406948496,1772334632590,-337.768402,0.00013566,2]
[406948497,1772334632600,-11707.2366915,0.00013596,2]
[406948498,1772334632613,-4570.5698085,0.00013596,2]
[406948499,1772334632624,-1508.05358389,0.00013597,2]
[406948500,1772334632633,-2400.0,0.000136,4]
[406948501,1772334632643,-7346.98,0.00013699,2]
[406948502,1772334632652,-4800.0,0.000137,5]
[406948503,1772334632662,-687.0,0.00013777,2]
[406948504,1772334632672,-7200.0,0.000138,5]
[406948505,1772334632681,-188.0,0.00013863,3]
[406948506,1772334632690,-9600.0,0.000139,5]
[406948507,1772334632699,-527.0,0.0001411,2]
[406948508,1772334632708,-162.0,0.00014338,2]
[406948509,1772334632717,-2500.0,0.00014372,2]
[406948510,1772334632726,-152.91222231,0.00014372,2]
[406948511,1772334632736,-17286.59920005,0.00014372,2]
[406948512,1772334632747,-961.42505945,0.00014372,2]
[406948513,1772334632756,-152.91222231,0.00014373,2]
[406948514,1772334632766,-1661.1398602,0.00014373,2]
[406948515,1772334632775,-154.17935423,0.00014398,2]
[406948516,1772334632784,-308.9131906,0.00014463,2]
[406948517,1772334632794,-151.0,0.0001447,2]
[406948518,1772334632803,-675.30386663,0.00014472,2]
[406948519,1772334632813,-7091.0,0.00014472,2]
[406948520,1772334632822,-11805.18403723,0.00014473,2]
[406948521,1772334632834,-644.83,0.00014473,2]
[406948522,1772334632845,-536.29980296,0.00014473,2]
[406948523,1772334632871,-708.27235126,0.00014473,2]
[406948524,1772334632882,-1929.27379233,0.00014473,2]
[406948525,1772334632909,-2538.93798931,0.00014473,2]
[406948526,1772334632921,-492.41777302,0.00014473,2]
[406948531,1772334638111,-17585.3958712,0.00014473,2]
[406948532,1772334638122,-33872.99999999,0.00014473,2]
[406948533,1772334638134,-1634.19576043,0.00014473,2]
[406948534,1772334638163,-14161.79383668,0.00014473,2]
[406948535,1772334638178,-13397.1296645,0.00014473,2]
[406948536,1772334638272,-4384.08419692,0.00014473,2]
[406948540,1772334640796,-2783.310597,0.00014473,2]
[406948556,1772334643161,-1650.0,0.00014372,2]
[406948557,1772334643175,-850.0,0.00014372,2]
[406948558,1772334643186,-469133.57418379,0.00014473,2]
[406948559,1772334643216,-1016.9661751,0.00014473,2]
[406948560,1772334643229,-998.9063611,0.00014473,2]
[406948561,1772334643241,-393.03903894,0.00014473,2]
[406948562,1772334643252,-11464.46976567,0.00014473,2]
[406948563,1772334643264,-9384.62838452,0.00014473,2]
[406948564,1772334643275,-6456.76566377,0.00014473,2]
[406948565,1772334643286,-9219.2,0.00014473,2]
[406948566,1772334643299,-2833.845,0.00014473,2]
[406948567,1772334643316,-150.0,0.00014247,2]
[406948568,1772334643327,-211.16896176,0.00014473,2]
[406948574,1772334645948,-3064.1377297,0.00014473,2]
[406948575,1772334646001,-2109.68,0.00014473,2]
[406948576,1772334646270,-12678.21375174,0.00014473,2]
[406948577,1772334646283,-904.64662748,0.00014473,2]
[406948578,1772334646325,-18570.14759546,0.00014473,2]
[406948579,1772334646338,-483.28924554,0.00014473,2]
[406948580,1772334646350,-808.00460389,0.00014473,2]
[406948581,1772334646379,-557194.54600239,0.00014473,2]
[406948582,1772334646391,-11277.81555068,0.00014473,2]
[406948594,1772335832131,-360.240332,8.956e-05,2]
[406948595,1772335832141,-1200.0,9.001e-05,2]
[406948596,1772335832150,-300.0,9.001e-05,2]
[406948597,1772335832159,-300.0,9.001e-05,2]
[406948598,1772335832168,-952.0,9.002e-05,2]
[406948599,1772335832178,-150.0,9.002e-05,2]
[406948600,1772335832188,-500.0,9.003e-05,2]
[406948601,1772335832197,-500.0,9.003e-05,2]
[406948602,1772335832207,-650.4413196,9.003e-05,2]
[406948603,1772335832220,-600.0,9.003e-05,2]
[406948604,1772335832230,-600.0,9.003e-05,2]
[406948605,1772335832239,-600.0,9.003e-05,2]
[406948606,1772335832249,-600.0,9.003e-05,2]
[406948607,1772335832259,-600.0,9.003e-05,2]
[406948608,1772335832268,-150.82121619,9.003e-05,2]
[406948609,1772335832279,-449.17878381,9.003e-05,2]
[406948610,1772335832288,-600.0,9.003e-05,2]
[406948611,1772335832298,-500.0,9.003e-05,2]
[406948612,1772335832308,-600.0,9.003e-05,2]
[406948613,1772335832317,-500.0,9.003e-05,2]
[406948614,1772335832327,-600.0,9.003e-05,2]
[406948615,1772335832337,-500.0,9.003e-05,2]
[406948616,1772335832346,-500.0,9.003e-05,2]
[406948617,1772335832356,-600.0,9.003e-05,2]
[406948618,1772335832365,-500.0,9.003e-05,2]
[406948619,1772335832376,-500.0,9.003e-05,2]
[406948620,1772335832385,-600.0,9.003e-05,2]
[406948621,1772335832395,-500.0,9.003e-05,2]
[406948622,1772335832406,-500.0,9.003e-05,2]
[406948623,1772335832416,-600.0,9.003e-05,2]
[406948624,1772335832426,-500.0,9.003e-05,2]
[406948625,1772335832435,-500.0,9.003e-05,2]
[406948626,1772335832446,-500.0,9.003e-05,2]
[406948627,1772335832455,-600.0,9.003e-05,2]
[406948628,1772335832465,-500.0,9.003e-05,2]
[406948629,1772335832474,-500.0,9.003e-05,2]
[406948630,1772335832483,-600.0,9.003e-05,2]
[406948631,1772335832493,-500.0,9.003e-05,2]
[406948632,1772335832503,-500.0,9.003e-05,2]
[406948633,1772335832512,-500.0,9.003e-05,2]
[406948634,1772335832522,-501.83714913,9.003e-05,2]
[406948635,1772335832532,-500.0,9.003e-05,2]
[406948636,1772335832541,-500.0,9.003e-05,2]
[406948637,1772335832551,-500.0,9.003e-05,2]
[406948638,1772335832561,-500.0,9.003e-05,2]
[406948639,1772335832573,-500.0,9.003e-05,2]
[406948640,1772335832583,-500.0,9.003e-05,2]
[406948641,1772335832592,-500.0,9.003e-05,2]
[406948642,1772335832602,-500.0,9.003e-05,2]
[406948643,1772335832612,-500.0,9.003e-05,2]
[406948644,1772335832622,-500.0,9.003e-05,2]
[406948645,1772335832632,-500.0,9.003e-05,2]
[406948646,1772335832642,-500.0,9.003e-05,2]
[406948647,1772335832651,-500.0,9.003e-05,2]
[406948648,1772335832660,-501.24297214,9.003e-05,2]
[406948649,1772335832670,-500.0,9.003e-05,2]
[406948650,1772335832680,-500.0,9.003e-05,2]
[406948651,1772335832693,-500.0,9.003e-05,2]
[406948652,1772335832702,-500.0,9.003e-05,2]
[406948653,1772335832711,-500.0,9.003e-05,2]
[406948654,1772335832722,-500.0,9.003e-05,2]
[406948655,1772335832731,-500.0,9.003e-05,2]
[406948656,1772335832740,-500.0,9.003e-05,2]
[406948657,1772335832750,-900.0,9.003e-05,2]
[406948658,1772335832761,-500.0,9.003e-05,2]
[406948659,1772335832771,-517.32215509,9.003e-05,2]
[406948660,1772335832784,-500.0,9.003e-05,2]
[406948661,1772335832793,-500.0,9.003e-05,2]
[406948662,1772335832803,-500.0,9.003e-05,2]
[406948663,1772335832812,-500.0,9.003e-05,2]
[406948664,1772335832821,-500.0,9.003e-05,2]
[406948665,1772335832831,-500.0,9.003e-05,2]
[406948666,1772335832840,-509.59720754,9.003e-05,2]
[406948667,1772335832849,-214.54,9.003e-05,2]
[406948668,1772335832859,-500.0,9.003e-05,2]
[406948669,1772335832868,-500.0,9.003e-05,2]
[406948670,1772335832877,-500.0,9.003e-05,2]
[406948671,1772335832886,-500.0,9.003e-05,2]
[406948672,1772335832896,-500.0,9.003e-05,2]
[406948673,1772335832906,-600.0,9.003e-05,2]
[406948674,1772335832915,-500.0,9.003e-05,2]
[406948675,1772335832925,-500.0,9.003e-05,2]
[406948676,1772335832934,-588.2719642,9.003e-05,2]
[406948677,1772335832944,-500.0,9.003e-05,2]
[406948678,1772335832954,-500.0,9.003e-05,2]
[406948679,1772335832963,-500.0,9.277e-05,2]
[406948680,1772335832972,-500.0,9.551e-05,2]
[406948681,1772335832981,-195.0,9.852e-05,2]
[406948682,1772335832991,-507.70481139,9.852e-05,2]
[406948683,1772335833000,-420.0,9.901e-05,2]
[406948684,1772335833010,-1680.0,9.901e-05,2]
[406948685,1772335833019,-255.0,9.902e-05,2]
[406948686,1772335833028,-842.0,0.00010685,2]
[406948687,1772335833038,-617.0,0.00010864,2]
[406948688,1772335833047,-2351.0,0.00010891,2]
[406948689,1772335833056,-587.0,0.00010891,2]
[406948690,1772335833066,-433.0,0.00010892,2]
[406948691,1772335833075,-1813.0,0.0001119,2]
[406948692,1772335833084,-441.0,0.00011213,2]
[406948693,1772335833093,-500.0,0.00011418,2]
[406948694,1772335833103,-6793.7,0.00011421,2]
[406948695,1772335833112,-1418.0,0.00011563,2]
[406948696,1772335833121,-11305.32,0.00011567,2]
[406948697,1772335833131,-209.0,0.00011586,2]
[406948698,1772335833140,-914.0,0.00011609,2]
[406948699,1772335833150,-1000.0,0.00011696,2]
[406948700,1772335833159,-500.0,0.00011781,2]
[406948701,1772335833173,-327.92,0.00011878,2]
[406948702,1772335833182,-250.0,0.00011972,2]
[406948703,1772335833191,-3292.0,0.0001198,2]
[406948704,1772335833200,-823.0,0.0001198,2]
[406948705,1772335833210,-736.0,0.00011982,2]
[406948706,1772335833220,-172.92107206,0.0001202,2]
[406948707,1772335833229,-500.0,0.0001207,2]
[406948708,1772335833239,-600.0,0.0001207,2]
[406948709,1772335833248,-500.0,0.0001207,2]
[406948710,1772335833257,-500.0,0.0001207,2]
[406948711,1772335833266,-600.0,0.0001207,2]
[406948712,1772335833276,-500.0,0.0001207,2]
[406948713,1772335833285,-600.0,0.0001207,2]
[406948714,1772335833294,-600.0,0.0001207,2]
[406948715,1772335833304,-500.0,0.0001207,2]
[406948716,1772335833313,-600.0,0.0001207,2]
[406948717,1772335833323,-500.0,0.0001207,2]
[406948718,1772335833332,-500.0,0.0001207,2]
[406948719,1772335833342,-600.0,0.0001207,2]
[406948720,1772335833351,-600.0,0.0001207,2]
[406948721,1772335833361,-500.0,0.0001207,2]
[406948722,1772335833370,-600.0,0.0001207,2]
[406948723,1772335833379,-500.0,0.0001207,2]
[406948724,1772335833388,-600.0,0.0001207,2]
[406948725,1772335833399,-500.0,0.0001207,2]
[406948726,1772335833408,-600.0,0.0001207,2]
[406948727,1772335833418,-600.0,0.0001207,2]
[406948728,1772335833427,-500.0,0.0001207,2]
[406948729,1772335833437,-500.0,0.0001207,2]
[406948730,1772335833448,-500.0,0.0001207,2]
[406948731,1772335833457,-600.0,0.0001207,2]
[406948732,1772335833467,-173.85261978,0.0001207,2]
[406948733,1772335833476,-515.17120651,0.0001207,2]
[406948734,1772335833490,-84.82879349,0.0001207,2]
[406948735,1772335833499,-500.0,0.0001207,2]
[406948736,1772335833508,-226.20471566,0.0001207,2]
[406948737,1772335833518,-443.38457762,0.0001207,2]
[406948738,1772335833530,-156.61542238,0.0001207,2]
[406948739,1772335833539,-500.0,0.0001207,2]
[406948740,1772335833552,-500.0,0.0001207,2]
[406948741,1772335833562,-500.0,0.0001207,2]
[406948742,1772335833572,-57.4259531,0.0001207,2]
[406948743,1772335838354,-442.5740469,0.0001207,2]
[406948744,1772335838364,-500.0,0.0001207,2]
[406948745,1772335838374,-500.0,0.0001207,2]
[406948746,1772335838384,-500.0,0.0001207,2]
[406948747,1772335838394,-500.0,0.0001207,2]
[406948748,1772335838403,-500.0,0.0001207,2]
[406948749,1772335838413,-500.0,0.0001207,2]
[406948750,1772335838423,-500.0,0.0001207,2]
[406948751,1772335838433,-500.0,0.0001207,2]
[406948752,1772335838445,-500.0,0.0001207,2]
[406948753,1772335838455,-500.0,0.0001207,2]
[406948754,1772335838465,-500.0,0.0001207,2]
[406948755,1772335838474,-500.0,0.0001207,2]
[406948756,1772335838483,-500.0,0.0001207,2]
[406948757,1772335838493,-500.0,0.0001207,2]
[406948758,1772335838503,-500.0,0.0001207,2]
[406948759,1772335838512,-500.0,0.0001207,2]
[406948760,1772335838522,-500.0,0.0001207,2]
[406948761,1772335838531,-500.0,0.0001207,2]
[406948762,1772335838540,-500.0,0.0001207,2]
[406948763,1772335838550,-500.0,0.0001207,2]
[406948764,1772335838559,-500.0,0.0001207,2]
[406948765,1772335838570,-500.0,0.0001207,2]
[406948766,1772335838580,-500.0,0.0001207,2]
[406948767,1772335838589,-500.0,0.0001207,2]
[406948768,1772335838598,-500.0,0.0001207,2]
[406948769,1772335838607,-500.0,0.0001207,2]
[406948770,1772335838616,-500.0,0.0001207,2]
[406948771,1772335838626,-500.0,0.0001207,2]
[406948772,1772335838635,-500.0,0.0001207,2]
[406948773,1772335838645,-500.0,0.0001207,2]
[406948774,1772335838654,-500.0,0.0001207,2]
[406948775,1772335838663,-500.0,0.0001207,2]
[406948776,1772335838673,-500.0,0.0001207,2]
[406948777,1772335838683,-500.0,0.0001207,2]
[406948778,1772335838696,-500.0,0.0001207,2]
[406948779,1772335838705,-500.0,0.0001207,2]
[406948780,1772335838714,-500.0,0.0001207,2]
[406948781,1772335838723,-500.0,0.0001207,2]
[406948782,1772335838733,-500.0,0.0001207,2]
[406948783,1772335838743,-761.07198258,0.0001207,2]
[406948784,1772335838752,-500.0,0.0001207,2]
[406948785,1772335838762,-500.0,0.0001207,2]
[406948786,1772335838771,-500.0,0.0001207,2]
[406948788,1772335838780,-500.0,0.0001207,2]
[406948789,1772335838789,-500.0,0.0001207,2]
[406948790,1772335838799,-500.0,0.0001207,2]
[406948791,1772335838808,-500.0,0.0001207,2]
[406948792,1772335838817,-500.0,0.0001207,2]
[406948793,1772335838827,-500.0,0.0001207,2]
[406948794,1772335838836,-500.0,0.0001207,2]